[Event "Early-Titled-Tuesday-Blitz-February-13-2024"]
[Site "Chess.com"]
[Date "2024.02.13"]
[Round "11"]
[White "Vigg-Sama"]
[Black "yuriydovzik"]
[Result "1-0"]
[WhiteElo "2232"]
[BlackElo "2101"]
[TimeControl "180+1"]
[EndTime "10:09:34 PST"]
[Termination "Vigg-Sama won on time"]

1. c4 {[%clk 0:03:00.9]} 1... b6 {[%clk 0:02:57.1]} 2. d4 {[%clk 0:03:00.1]}
2... e6 {[%clk 0:02:51.9]} 3. a3 {[%clk 0:02:58]} 3... Bb7 {[%clk 0:02:48.6]} 4.
Nc3 {[%clk 0:02:57.2]} 4... Nf6 {[%clk 0:02:41.3]} 5. d5 {[%clk 0:02:57]} 5...
Be7 {[%clk 0:02:27.7]} 6. g3 {[%clk 0:02:55.7]} 6... O-O {[%clk 0:02:25.6]} 7.
Bg2 {[%clk 0:02:55.8]} 7... exd5 {[%clk 0:02:21.8]} 8. cxd5 {[%clk 0:02:55.6]}
8... d6 {[%clk 0:01:56.2]} 9. Nf3 {[%clk 0:02:43]} 9... Nbd7 {[%clk 0:01:53.1]}
10. Nd4 {[%clk 0:02:40.4]} 10... Re8 {[%clk 0:01:40.2]} 11. O-O {[%clk
0:02:39.7]} 11... Bf8 {[%clk 0:01:37.6]} 12. Bg5 {[%clk 0:02:24.4]} 12... h6
{[%clk 0:01:31.5]} 13. Bf4 {[%clk 0:02:22.5]} 13... g6 {[%clk 0:01:22]} 14. Qd2
{[%clk 0:02:16.9]} 14... Kh7 {[%clk 0:01:21.1]} 15. e4 {[%clk 0:02:11.4]} 15...
Ng4 {[%clk 0:01:04.1]} 16. h3 {[%clk 0:02:05.1]} 16... Nge5 {[%clk 0:01:02.9]}
17. Be3 {[%clk 0:02:04.9]} 17... Nc4 {[%clk 0:01:02.3]} 18. Qc1 {[%clk
0:02:05.1]} 18... Nxe3 {[%clk 0:01:02]} 19. Qxe3 {[%clk 0:02:06]} 19... Bg7
{[%clk 0:00:59.7]} 20. Rad1 {[%clk 0:02:00.5]} 20... Ne5 {[%clk 0:00:57.4]} 21.
Kh2 {[%clk 0:01:51.6]} 21... Ba6 {[%clk 0:00:52.6]} 22. Ncb5 {[%clk 0:01:46.3]}
22... Qd7 {[%clk 0:00:50.5]} 23. a4 {[%clk 0:01:46]} 23... Bb7 {[%clk
0:00:43.4]} 24. Rc1 {[%clk 0:01:41.7]} 24... Rec8 {[%clk 0:00:37.7]} 25. f4
{[%clk 0:01:36]} 25... a6 {[%clk 0:00:36]} 26. Na3 {[%clk 0:01:12.9]} 26... c5
{[%clk 0:00:34.2]} 27. dxc6 {[%clk 0:01:05.7]} 27... Nxc6 {[%clk 0:00:32.9]} 28.
Nxc6 {[%clk 0:01:05.1]} 28... Bxc6 {[%clk 0:00:32.3]} 29. b3 {[%clk 0:01:01.8]}
29... b5 {[%clk 0:00:22]} 30. a5 {[%clk 0:00:57.9]} 30... Bb2 {[%clk 0:00:13.9]}
31. Ra1 {[%clk 0:00:47.8]} 31... Bxa1 {[%clk 0:00:12.5]} 32. Rxa1 {[%clk
0:00:47.4]} 32... Bb7 {[%clk 0:00:12]} 33. Rd1 {[%clk 0:00:43.3]} 33... Rc7
{[%clk 0:00:07.6]} 34. e5 {[%clk 0:00:41.6]} 34... Bxg2 {[%clk 0:00:05.3]} 35.
Rxd6 {[%clk 0:00:40.8]} 35... Qf5 {[%clk 0:00:02.3]} 36. Kxg2 {[%clk 0:00:40.4]}
36... Rac8 {[%clk 0:00:01.4]} 37. g4 {[%clk 0:00:36.8]} 1-0

[Event "Early-Titled-Tuesday-Blitz-February-13-2024"]
[Site "Chess.com"]
[Date "2024.02.13"]
[Round "11"]
[White "EsmeraldasAnderson03"]
[Black "sharkarton"]
[Result "1-0"]
[WhiteElo "2421"]
[BlackElo "2511"]
[TimeControl "180+1"]
[EndTime "10:09:37 PST"]
[Termination "EsmeraldasAnderson03 won on time"]

1. d4 {[%clk 0:02:59.6]} 1... Nf6 {[%clk 0:02:47.5]} 2. c4 {[%clk 0:02:59.3]}
2... c5 {[%clk 0:02:47.5]} 3. d5 {[%clk 0:02:58.3]} 3... e6 {[%clk 0:02:47.7]}
4. Nc3 {[%clk 0:02:57.4]} 4... exd5 {[%clk 0:02:48.6]} 5. cxd5 {[%clk
0:02:58.2]} 5... d6 {[%clk 0:02:49.5]} 6. e4 {[%clk 0:02:58.7]} 6... g6 {[%clk
0:02:50.4]} 7. Nf3 {[%clk 0:02:59.2]} 7... Bg7 {[%clk 0:02:50.9]} 8. Nd2 {[%clk
0:02:59.9]} 8... O-O {[%clk 0:02:50.7]} 9. Be2 {[%clk 0:03:00.5]} 9... Re8
{[%clk 0:02:44.3]} 10. O-O {[%clk 0:03:00.3]} 10... Na6 {[%clk 0:02:44.1]} 11.
Qc2 {[%clk 0:02:57]} 11... Nc7 {[%clk 0:02:37.2]} 12. a4 {[%clk 0:02:56.5]}
12... Nfxd5 {[%clk 0:02:30.1]} 13. exd5 {[%clk 0:02:04.7]} 13... Rxe2 {[%clk
0:02:29.5]} 14. Nxe2 {[%clk 0:02:04.1]} 14... Nxd5 {[%clk 0:02:25.9]} 15. Rd1
{[%clk 0:01:51.6]} 15... Bf5 {[%clk 0:02:16.6]} 16. Qb3 {[%clk 0:01:51.8]} 16...
Nb4 {[%clk 0:02:08.7]} 17. Qf3 {[%clk 0:01:48.3]} 17... Nc2 {[%clk 0:01:38.1]}
18. Ra2 {[%clk 0:01:45.1]} 18... h5 {[%clk 0:01:37.7]} 19. h3 {[%clk 0:01:36.1]}
19... Nb4 {[%clk 0:01:27.1]} 20. Ra3 {[%clk 0:01:35.1]} 20... Nc2 {[%clk
0:01:27.4]} 21. Rb3 {[%clk 0:01:32.4]} 21... Nb4 {[%clk 0:01:28]} 22. Nc4 {[%clk
0:01:30.2]} 22... d5 {[%clk 0:01:18.4]} 23. Ne3 {[%clk 0:01:22.1]} 23... Be4
{[%clk 0:01:16]} 24. Qg3 {[%clk 0:01:20.3]} 24... a5 {[%clk 0:01:00.7]} 25. Nc3
{[%clk 0:01:16]} 25... c4 {[%clk 0:00:48.3]} 26. Rxb4 {[%clk 0:01:15.2]} 26...
Bxc3 {[%clk 0:00:27.5]} 27. Rxb7 {[%clk 0:01:13.4]} 27... Bf6 {[%clk 0:00:22]}
28. Qc7 {[%clk 0:01:04.5]} 28... Qe8 {[%clk 0:00:21]} 29. Qd7 {[%clk 0:00:58.1]}
29... Qf8 {[%clk 0:00:21.3]} 30. Nxd5 {[%clk 0:00:56.6]} 30... Be5 {[%clk
0:00:16.6]} 31. Qe7 {[%clk 0:00:53.8]} 31... Qg7 {[%clk 0:00:15.3]} 32. Bg5
{[%clk 0:00:37.9]} 32... Rf8 {[%clk 0:00:12.5]} 33. Bf6 {[%clk 0:00:31.9]} 33...
Bxf6 {[%clk 0:00:10.7]} 34. Nxf6+ {[%clk 0:00:32.8]} 34... Kh8 {[%clk
0:00:10.4]} 35. Nxe4 {[%clk 0:00:33.4]} 35... c3 {[%clk 0:00:07.8]} 36. bxc3
{[%clk 0:00:32.7]} 36... Kh7 {[%clk 0:00:04.6]} 37. Ng5+ {[%clk 0:00:31.6]}
37... Kg8 {[%clk 0:00:03.3]} 38. Ne6 {[%clk 0:00:31.7]} 1-0

[Event "Early-Titled-Tuesday-Blitz-February-13-2024"]
[Site "Chess.com"]
[Date "2024.02.13"]
[Round "11"]
[White "jk13"]
[Black "Hikaru"]
[Result "1/2-1/2"]
[WhiteElo "2724"]
[BlackElo "3343"]
[TimeControl "180+1"]
[EndTime "10:09:39 PST"]
[Termination "Game drawn - insufficient material"]

1. e4 {[%clk 0:03:00.9]} 1... g6 {[%clk 0:03:00.4]} 2. d4 {[%clk 0:03:00.9]}
2... Bg7 {[%clk 0:03:00.3]} 3. Nc3 {[%clk 0:03:01.8]} 3... a6 {[%clk 0:03:00.2]}
4. a4 {[%clk 0:03:01.2]} 4... d6 {[%clk 0:03:00.5]} 5. h3 {[%clk 0:03:01.3]}
5... Nc6 {[%clk 0:03:00.8]} 6. Nf3 {[%clk 0:03:01.8]} 6... e5 {[%clk 0:03:01]}
7. dxe5 {[%clk 0:03:01.6]} 7... Nxe5 {[%clk 0:03:01.7]} 8. Nxe5 {[%clk
0:03:01.9]} 8... Bxe5 {[%clk 0:03:02.6]} 9. Be3 {[%clk 0:03:02.1]} 9... Nf6
{[%clk 0:03:01.3]} 10. Be2 {[%clk 0:03:00.8]} 10... O-O {[%clk 0:03:00.2]} 11.
Bd4 {[%clk 0:02:57.7]} 11... Re8 {[%clk 0:02:58.6]} 12. O-O {[%clk 0:02:56.3]}
12... Nd7 {[%clk 0:02:55.2]} 13. f4 {[%clk 0:02:52.7]} 13... Bg7 {[%clk
0:02:51.7]} 14. Bf3 {[%clk 0:02:47]} 14... Bxd4+ {[%clk 0:02:50]} 15. Qxd4
{[%clk 0:02:46.8]} 15... Qf6 {[%clk 0:02:50.7]} 16. Qd2 {[%clk 0:02:44.5]} 16...
Nb6 {[%clk 0:02:43.4]} 17. b3 {[%clk 0:02:37.9]} 17... Be6 {[%clk 0:02:43.3]}
18. Rad1 {[%clk 0:02:22.6]} 18... Rad8 {[%clk 0:02:40.6]} 19. Rfe1 {[%clk
0:02:18.2]} 19... c6 {[%clk 0:02:37]} 20. Ne2 {[%clk 0:02:13.1]} 20... d5 {[%clk
0:02:35]} 21. e5 {[%clk 0:02:10.3]} 21... Qh4 {[%clk 0:02:33.9]} 22. Qb4 {[%clk
0:02:05.9]} 22... Nd7 {[%clk 0:02:32.3]} 23. Qxb7 {[%clk 0:02:05.2]} 23... g5
{[%clk 0:02:30.7]} 24. Qxc6 {[%clk 0:02:00]} 24... gxf4 {[%clk 0:02:30.7]} 25.
Qc3 {[%clk 0:01:54.3]} 25... Qg5 {[%clk 0:02:20.7]} 26. Qd4 {[%clk 0:01:06.3]}
26... Bxh3 {[%clk 0:02:09.7]} 27. Qxf4 {[%clk 0:01:06.9]} 27... Qg7 {[%clk
0:02:09.9]} 28. Rxd5 {[%clk 0:00:59.8]} 28... Nxe5 {[%clk 0:02:10]} 29. Rxd8
{[%clk 0:00:56.9]} 29... Rxd8 {[%clk 0:02:10.9]} 30. Ng3 {[%clk 0:00:55]} 30...
Re8 {[%clk 0:02:06.9]} 31. Kh1 {[%clk 0:00:47]} 31... Re6 {[%clk 0:01:52.5]} 32.
Nh5 {[%clk 0:00:38.8]} 32... Nxf3 {[%clk 0:01:41.5]} 33. Qb8+ {[%clk 0:00:21.7]}
33... Qf8 {[%clk 0:01:41.7]} 34. Qxf8+ {[%clk 0:00:14.4]} 34... Kxf8 {[%clk
0:01:42.6]} 35. Rxe6 {[%clk 0:00:14.4]} 35... Bxe6 {[%clk 0:01:43.5]} 36. gxf3
{[%clk 0:00:14.7]} 36... Bf5 {[%clk 0:01:44.4]} 37. c3 {[%clk 0:00:13.5]} 37...
Bc2 {[%clk 0:01:45.3]} 38. b4 {[%clk 0:00:14.1]} 38... Bxa4 {[%clk 0:01:45.7]}
39. Kg2 {[%clk 0:00:14.5]} 39... Ke7 {[%clk 0:01:46.3]} 40. Kf2 {[%clk
0:00:14.8]} 40... Ke6 {[%clk 0:01:44.5]} 41. Ke3 {[%clk 0:00:12.8]} 41... Ke5
{[%clk 0:01:45]} 42. c4 {[%clk 0:00:11.2]} 42... Bb3 {[%clk 0:01:43.1]} 43. c5
{[%clk 0:00:11.6]} 43... Bd5 {[%clk 0:01:43]} 44. Ng3 {[%clk 0:00:08.5]} 44...
Bc6 {[%clk 0:01:42.5]} 45. f4+ {[%clk 0:00:04.6]} 45... Kd5 {[%clk 0:01:42.8]}
46. Ne4 {[%clk 0:00:03.2]} 46... h6 {[%clk 0:01:38.1]} 47. Nd6 {[%clk
0:00:02.6]} 47... Ke6 {[%clk 0:01:37.3]} 48. f5+ {[%clk 0:00:02.3]} 48... Kf6
{[%clk 0:01:36.1]} 49. Kf4 {[%clk 0:00:03.1]} 49... h5 {[%clk 0:01:34.1]} 50.
Nc4 {[%clk 0:00:02.9]} 50... h4 {[%clk 0:01:33.8]} 51. Kg4 {[%clk 0:00:03.4]}
51... h3 {[%clk 0:01:28.6]} 52. Kxh3 {[%clk 0:00:03.8]} 52... Kxf5 {[%clk
0:01:29.5]} 53. Kg3 {[%clk 0:00:03.3]} 53... Ke6 {[%clk 0:01:29.2]} 54. Kf4
{[%clk 0:00:03.2]} 54... Kd5 {[%clk 0:01:29.5]} 55. Nd6 {[%clk 0:00:03.4]} 55...
Ke6 {[%clk 0:01:27]} 56. Ke3 {[%clk 0:00:03]} 56... f6 {[%clk 0:01:23.7]} 57.
Kd4 {[%clk 0:00:03.2]} 57... Bd7 {[%clk 0:01:22.8]} 58. Ke4 {[%clk 0:00:03.4]}
58... Ba4 {[%clk 0:01:22.9]} 59. Kd4 {[%clk 0:00:03.8]} 59... f5 {[%clk
0:01:23.5]} 60. Nxf5 {[%clk 0:00:03.6]} 60... Kxf5 {[%clk 0:01:23.1]} 61. c6
{[%clk 0:00:03.6]} 61... Bxc6 {[%clk 0:01:22.5]} 62. Kc3 {[%clk 0:00:02.5]}
62... Ke4 {[%clk 0:01:23.1]} 63. Kb2 {[%clk 0:00:03.2]} 63... Kd3 {[%clk
0:01:23.5]} 64. Ka1 {[%clk 0:00:04.1]} 64... Kc2 {[%clk 0:01:23.9]} 65. Ka2
{[%clk 0:00:04.6]} 65... Kc3 {[%clk 0:01:24.6]} 66. Ka3 {[%clk 0:00:04.8]} 66...
Ba4 {[%clk 0:01:25.5]} 67. Kxa4 {[%clk 0:00:04.9]} 67... Kc4 {[%clk 0:01:26.1]}
68. Ka5 {[%clk 0:00:05.4]} 68... Kb3 {[%clk 0:01:26.7]} 69. b5 {[%clk
0:00:04.6]} 69... axb5 {[%clk 0:01:26]} 70. Kxb5 {[%clk 0:00:05.5]} 1/2-1/2

[Event "Early-Titled-Tuesday-Blitz-February-13-2024"]
[Site "Chess.com"]
[Date "2024.02.13"]
[Round "11"]
[White "shimastream"]
[Black "CaspiIsrael"]
[Result "1-0"]
[WhiteElo "3000"]
[BlackElo "2797"]
[TimeControl "180+1"]
[EndTime "10:09:41 PST"]
[Termination "shimastream won by resignation"]

1. e4 {[%clk 0:02:48.2]} 1... e5 {[%clk 0:02:59.9]} 2. d4 {[%clk 0:02:45.4]}
2... exd4 {[%clk 0:02:58.5]} 3. Qxd4 {[%clk 0:02:46.3]} 3... Nc6 {[%clk
0:02:58.2]} 4. Qa4 {[%clk 0:02:46.6]} 4... Nf6 {[%clk 0:02:55.9]} 5. Nf3 {[%clk
0:02:45.8]} 5... Bb4+ {[%clk 0:02:48.4]} 6. c3 {[%clk 0:02:45.6]} 6... Bc5
{[%clk 0:02:46.7]} 7. b4 {[%clk 0:02:45.3]} 7... Bb6 {[%clk 0:02:38]} 8. b5
{[%clk 0:02:44.9]} 8... Ne7 {[%clk 0:02:36.3]} 9. e5 {[%clk 0:02:44.7]} 9...
Nfg8 {[%clk 0:02:32.7]} 10. Bc4 {[%clk 0:02:30.5]} 10... d5 {[%clk 0:02:25.9]}
11. exd6 {[%clk 0:02:30.7]} 11... Qxd6 {[%clk 0:02:26.5]} 12. O-O {[%clk
0:02:29.4]} 12... Be6 {[%clk 0:02:26.4]} 13. Ba3 {[%clk 0:02:26.2]} 13... Qd7
{[%clk 0:02:16]} 14. Rd1 {[%clk 0:02:22.8]} 14... Qc8 {[%clk 0:02:12.5]} 15.
Nbd2 {[%clk 0:01:50.2]} 15... c5 {[%clk 0:01:55]} 16. bxc6 {[%clk 0:01:42.6]}
16... Nxc6 {[%clk 0:01:54.2]} 17. Ne4 {[%clk 0:01:39.8]} 17... Bc7 {[%clk
0:01:54.5]} 18. Bb5 {[%clk 0:01:16.5]} 18... Ne7 {[%clk 0:01:48.2]} 19. Bxe7
{[%clk 0:01:10.4]} 19... Kxe7 {[%clk 0:01:48.5]} 20. Qa3+ {[%clk 0:01:05.3]}
20... Ke8 {[%clk 0:01:47.6]} 21. Rd6 {[%clk 0:01:00.1]} 21... a6 {[%clk
0:01:29.8]} 22. Bxc6+ {[%clk 0:00:45.4]} 22... bxc6 {[%clk 0:01:29.1]} 23. Rad1
{[%clk 0:00:32.4]} 23... h6 {[%clk 0:01:15.8]} 24. Ne5 {[%clk 0:00:29.7]} 24...
Bd5 {[%clk 0:01:13.6]} 25. Rd7 {[%clk 0:00:22]} 25... Qxd7 {[%clk 0:01:00.9]}
26. Nxd7 {[%clk 0:00:21.8]} 26... Bxe4 {[%clk 0:00:59.7]} 27. Nc5 {[%clk
0:00:13.2]} 27... Bd5 {[%clk 0:00:56.3]} 28. c4 {[%clk 0:00:12]} 28... Be6
{[%clk 0:00:40.3]} 29. Nxe6 {[%clk 0:00:11.3]} 29... fxe6 {[%clk 0:00:40.4]} 30.
Qc5 {[%clk 0:00:11.8]} 30... Rc8 {[%clk 0:00:24.3]} 31. Qxc6+ {[%clk 0:00:11]}
31... Kf8 {[%clk 0:00:24.2]} 32. Qd7 {[%clk 0:00:08.6]} 32... Rd8 {[%clk
0:00:12.1]} 33. Qxd8+ {[%clk 0:00:08.4]} 33... Bxd8 {[%clk 0:00:12]} 34. Rxd8+
{[%clk 0:00:09.3]} 1-0

[Event "Early-Titled-Tuesday-Blitz-February-13-2024"]
[Site "Chess.com"]
[Date "2024.02.13"]
[Round "11"]
[White "DeArron_Fox"]
[Black "GMKrikor"]
[Result "0-1"]
[WhiteElo "2512"]
[BlackElo "2839"]
[TimeControl "180+1"]
[EndTime "10:09:41 PST"]
[Termination "GMKrikor won on time"]

1. d4 {[%clk 0:03:00.9]} 1... Nf6 {[%clk 0:02:59.7]} 2. c4 {[%clk 0:02:49.1]}
2... g6 {[%clk 0:02:59.8]} 3. Nc3 {[%clk 0:02:49.3]} 3... d5 {[%clk 0:03:00.1]}
4. cxd5 {[%clk 0:02:50.2]} 4... Nxd5 {[%clk 0:03:00.2]} 5. e4 {[%clk 0:02:50.9]}
5... Nxc3 {[%clk 0:03:00.5]} 6. bxc3 {[%clk 0:02:50.8]} 6... Bg7 {[%clk
0:03:01.2]} 7. Be3 {[%clk 0:02:51.3]} 7... c5 {[%clk 0:03:01.3]} 8. Qd2 {[%clk
0:02:49.6]} 8... Qa5 {[%clk 0:03:01.1]} 9. Nf3 {[%clk 0:02:47.5]} 9... O-O
{[%clk 0:02:58.8]} 10. Rc1 {[%clk 0:02:44.6]} 10... Bg4 {[%clk 0:02:58.7]} 11.
d5 {[%clk 0:02:36.1]} 11... b5 {[%clk 0:02:58.2]} 12. Bxc5 {[%clk 0:02:19.8]}
12... Rc8 {[%clk 0:02:57.8]} 13. Bd4 {[%clk 0:01:49.6]} 13... Bxf3 {[%clk
0:02:37.8]} 14. gxf3 {[%clk 0:01:12.1]} 14... Bxd4 {[%clk 0:02:37.4]} 15. Qxd4
{[%clk 0:01:13]} 15... Qxa2 {[%clk 0:02:37.7]} 16. Bd3 {[%clk 0:01:04]} 16...
Nd7 {[%clk 0:02:32.1]} 17. O-O {[%clk 0:01:02.5]} 17... Nc5 {[%clk 0:02:32.3]}
18. Ra1 {[%clk 0:00:36.2]} 18... Qd2 {[%clk 0:02:31.9]} 19. Bxb5 {[%clk
0:00:29.2]} 19... Qg5+ {[%clk 0:02:18.2]} 20. Kh1 {[%clk 0:00:29.2]} 20... Nb3
{[%clk 0:02:16.5]} 21. Qd3 {[%clk 0:00:16.6]} 21... Nxa1 {[%clk 0:02:13.2]} 22.
Rxa1 {[%clk 0:00:17.5]} 22... a5 {[%clk 0:01:45.8]} 23. c4 {[%clk 0:00:11.1]}
23... a4 {[%clk 0:01:35.7]} 24. Rxa4 {[%clk 0:00:03.5]} 24... Rxa4 {[%clk
0:01:33.5]} 25. Bxa4 {[%clk 0:00:04.4]} 25... Qc1+ {[%clk 0:01:29.8]} 26. Kg2
{[%clk 0:00:03.9]} 26... Qxc4 {[%clk 0:01:29.3]} 27. Qxc4 {[%clk 0:00:02.7]}
27... Rxc4 {[%clk 0:01:30.2]} 28. Bd1 {[%clk 0:00:02.3]} 28... Kg7 {[%clk
0:01:28.2]} 29. Be2 {[%clk 0:00:02.5]} 29... Rb4 {[%clk 0:01:25.8]} 30. Bd3
{[%clk 0:00:02.3]} 30... g5 {[%clk 0:01:24.5]} 31. Kg3 {[%clk 0:00:02.1]} 31...
h6 {[%clk 0:01:18.9]} 32. Ba6 {[%clk 0:00:02.2]} 32... Rb3 {[%clk 0:01:14.8]}
33. Bc8 {[%clk 0:00:02.4]} 33... Kf6 {[%clk 0:01:13.7]} 34. Bf5 {[%clk 0:00:03]}
34... Ke5 {[%clk 0:01:11.5]} 35. Kg4 {[%clk 0:00:03.1]} 35... Rb2 {[%clk
0:01:11.2]} 36. Kg3 {[%clk 0:00:02.4]} 36... h5 {[%clk 0:01:02]} 37. Bh7 {[%clk
0:00:02]} 37... h4+ {[%clk 0:00:58.6]} 38. Kg2 {[%clk 0:00:02.5]} 38... Kf4
{[%clk 0:00:57.8]} 39. Bg8 {[%clk 0:00:02.4]} 39... f5 {[%clk 0:00:50.9]} 40.
Bh7 {[%clk 0:00:02.1]} 40... fxe4 {[%clk 0:00:51.2]} 41. Bxe4 {[%clk 0:00:02.1]}
41... g4 {[%clk 0:00:49.1]} 42. h3 {[%clk 0:00:02.4]} 42... g3 {[%clk
0:00:48.7]} 43. Bd3 {[%clk 0:00:01.6]} 43... Rxf2+ {[%clk 0:00:48.2]} 44. Kg1
{[%clk 0:00:02.5]} 44... Rxf3 {[%clk 0:00:48.7]} 45. Bc4 {[%clk 0:00:02.8]}
45... Rc3 {[%clk 0:00:48.7]} 46. Bb5 {[%clk 0:00:01.9]} 46... Kf3 {[%clk
0:00:45.1]} 0-1

[Event "Early-Titled-Tuesday-Blitz-February-13-2024"]
[Site "Chess.com"]
[Date "2024.02.13"]
[Round "11"]
[White "GMBenjaminBok"]
[Black "Dyadya81"]
[Result "1-0"]
[WhiteElo "2975"]
[BlackElo "2819"]
[TimeControl "180+1"]
[EndTime "10:09:44 PST"]
[Termination "GMBenjaminBok won by resignation"]

1. d4 {[%clk 0:03:00.9]} 1... Nf6 {[%clk 0:02:57.9]} 2. c4 {[%clk 0:02:59.3]}
2... g6 {[%clk 0:02:57.6]} 3. g3 {[%clk 0:02:58.7]} 3... Bg7 {[%clk 0:02:57.9]}
4. Bg2 {[%clk 0:02:59.3]} 4... O-O {[%clk 0:02:58.5]} 5. Nc3 {[%clk 0:02:59.8]}
5... d6 {[%clk 0:02:57]} 6. Nf3 {[%clk 0:03:00.2]} 6... c6 {[%clk 0:02:57.5]} 7.
e4 {[%clk 0:03:00]} 7... e5 {[%clk 0:02:54.7]} 8. O-O {[%clk 0:02:59.6]} 8...
exd4 {[%clk 0:02:54.2]} 9. Nxd4 {[%clk 0:03:00.5]} 9... Re8 {[%clk 0:02:54.9]}
10. h3 {[%clk 0:02:59.6]} 10... Na6 {[%clk 0:02:55]} 11. Re1 {[%clk 0:02:56.2]}
11... Qb6 {[%clk 0:02:53]} 12. Nb3 {[%clk 0:02:34.2]} 12... Be6 {[%clk
0:02:49.1]} 13. Be3 {[%clk 0:02:31.8]} 13... Qc7 {[%clk 0:02:33.3]} 14. Qe2
{[%clk 0:02:26.5]} 14... b6 {[%clk 0:02:22.8]} 15. Rad1 {[%clk 0:02:22.3]} 15...
Nc5 {[%clk 0:02:22.6]} 16. Nd4 {[%clk 0:02:21.4]} 16... a5 {[%clk 0:02:17.8]}
17. b3 {[%clk 0:01:30.1]} 17... Rad8 {[%clk 0:02:17]} 18. Nxc6 {[%clk
0:01:06.3]} 18... Qxc6 {[%clk 0:02:13.7]} 19. e5 {[%clk 0:01:06.6]} 19... Qc8
{[%clk 0:02:13.1]} 20. exf6 {[%clk 0:01:04.7]} 20... Bxf6 {[%clk 0:02:13.3]} 21.
Nd5 {[%clk 0:01:04.4]} 21... Bg7 {[%clk 0:01:44.9]} 22. Nxb6 {[%clk 0:01:02.1]}
22... Qa6 {[%clk 0:01:42.2]} 23. Nd5 {[%clk 0:01:00.7]} 23... Qc8 {[%clk
0:01:32.4]} 24. Qf3 {[%clk 0:00:49.6]} 24... a4 {[%clk 0:00:50.5]} 25. Nf6+
{[%clk 0:00:46.7]} 25... Kh8 {[%clk 0:00:44]} 26. Nxe8 {[%clk 0:00:46]} 26...
Rxe8 {[%clk 0:00:44.9]} 27. Bd4 {[%clk 0:00:36.3]} 27... axb3 {[%clk 0:00:41.4]}
28. axb3 {[%clk 0:00:35.5]} 28... Qb8 {[%clk 0:00:39.8]} 29. Bxg7+ {[%clk
0:00:35.1]} 29... Kxg7 {[%clk 0:00:40.7]} 30. Qc3+ {[%clk 0:00:35.7]} 30... Kg8
{[%clk 0:00:39.2]} 31. b4 {[%clk 0:00:36.6]} 31... Na4 {[%clk 0:00:38.3]} 32.
Qd2 {[%clk 0:00:32.2]} 32... Bxc4 {[%clk 0:00:35.1]} 33. Rxe8+ {[%clk
0:00:30.1]} 33... Qxe8 {[%clk 0:00:36]} 34. Qxd6 {[%clk 0:00:29.4]} 34... Nc3
{[%clk 0:00:36.6]} 35. Qd8 {[%clk 0:00:27.5]} 35... Qxd8 {[%clk 0:00:29.2]} 36.
Rxd8+ {[%clk 0:00:28.4]} 36... Kg7 {[%clk 0:00:29.3]} 37. Bf1 {[%clk 0:00:27.7]}
37... Bd5 {[%clk 0:00:27.7]} 38. b5 {[%clk 0:00:27]} 38... Be4 {[%clk
0:00:22.7]} 39. b6 {[%clk 0:00:25.9]} 39... Na4 {[%clk 0:00:23.1]} 40. Rd4
{[%clk 0:00:24.4]} 40... Nc5 {[%clk 0:00:20.5]} 41. Rxe4 {[%clk 0:00:24]} 41...
Nxe4 {[%clk 0:00:20.4]} 42. b7 {[%clk 0:00:24.5]} 1-0

[Event "Early-Titled-Tuesday-Blitz-February-13-2024"]
[Site "Chess.com"]
[Date "2024.02.13"]
[Round "11"]
[White "DonkyDonkyDonkey"]
[Black "HansOnTwitch"]
[Result "0-1"]
[WhiteElo "2938"]
[BlackElo "3157"]
[TimeControl "180+1"]
[EndTime "10:09:46 PST"]
[Termination "HansOnTwitch won by resignation"]

1. e4 {[%clk 0:02:56.5]} 1... c5 {[%clk 0:02:59]} 2. Nf3 {[%clk 0:02:54.9]} 2...
d6 {[%clk 0:02:58.1]} 3. Bb5+ {[%clk 0:02:51.8]} 3... Nd7 {[%clk 0:02:57.2]} 4.
d4 {[%clk 0:02:52.4]} 4... cxd4 {[%clk 0:02:56.5]} 5. Nxd4 {[%clk 0:02:53.3]}
5... Nf6 {[%clk 0:02:54]} 6. O-O {[%clk 0:02:49]} 6... a6 {[%clk 0:02:53.8]} 7.
Bd3 {[%clk 0:02:46.3]} 7... Nc5 {[%clk 0:02:50.6]} 8. Nc3 {[%clk 0:02:46.3]}
8... e6 {[%clk 0:02:46.6]} 9. Be3 {[%clk 0:02:36.6]} 9... Qc7 {[%clk 0:02:34.1]}
10. Nb3 {[%clk 0:02:33.9]} 10... b6 {[%clk 0:02:22.1]} 11. f4 {[%clk 0:02:09]}
11... Bb7 {[%clk 0:02:21.2]} 12. Nxc5 {[%clk 0:02:09.4]} 12... bxc5 {[%clk
0:02:21.1]} 13. f5 {[%clk 0:01:46.5]} 13... Rd8 {[%clk 0:01:44.8]} 14. fxe6
{[%clk 0:01:36.5]} 14... fxe6 {[%clk 0:01:45]} 15. Qe2 {[%clk 0:01:36.1]} 15...
Qc8 {[%clk 0:01:44.9]} 16. Bg5 {[%clk 0:01:17]} 16... Be7 {[%clk 0:01:44.9]} 17.
Bc4 {[%clk 0:01:16.8]} 17... h6 {[%clk 0:01:22.2]} 18. Bxf6 {[%clk 0:01:01.1]}
18... Bxf6 {[%clk 0:01:21]} 19. Qg4 {[%clk 0:00:55.8]} 19... Kf7 {[%clk
0:01:00.2]} 20. Qh5+ {[%clk 0:00:48.9]} 20... Ke7 {[%clk 0:00:58.5]} 21. Rae1
{[%clk 0:00:39.7]} 21... Rdf8 {[%clk 0:00:57.7]} 22. Qg4 {[%clk 0:00:33.3]}
22... h5 {[%clk 0:00:57.7]} 23. Qh3 {[%clk 0:00:30.6]} 23... Rh6 {[%clk
0:00:51.7]} 24. Qd3 {[%clk 0:00:18]} 24... Be5 {[%clk 0:00:44.4]} 25. Rxf8
{[%clk 0:00:16.7]} 25... Qxf8 {[%clk 0:00:44.4]} 26. Rf1 {[%clk 0:00:16.3]}
26... Rf6 {[%clk 0:00:32.7]} 27. Rd1 {[%clk 0:00:16.6]} 27... Rf2 {[%clk
0:00:28.2]} 28. Bxa6 {[%clk 0:00:15]} 28... Bd4 {[%clk 0:00:16.9]} 29. Kh1
{[%clk 0:00:15.2]} 29... Bxa6 {[%clk 0:00:12.9]} 30. Qxa6 {[%clk 0:00:16.1]}
30... Qf4 {[%clk 0:00:12.8]} 31. Qd3 {[%clk 0:00:10.5]} 31... h4 {[%clk
0:00:10.6]} 32. a4 {[%clk 0:00:08.8]} 32... Be5 {[%clk 0:00:10]} 33. g3 {[%clk
0:00:09.2]} 33... hxg3 {[%clk 0:00:08.9]} 34. Qxg3 {[%clk 0:00:09.9]} 34...
Rxh2+ {[%clk 0:00:08.9]} 0-1